bitfinex/quotes_ETHUSD_20241124
["timestamp","ask_amount","ask_price","bid_price","bid_amount"]
[1732467762994,0.38395,3309.1,3308.6,0.90672]
[1732467763297,0.38395,3309.1,3308.9,0.01412477]
[1732467763591,0.38395,3309.1,3308.5,0.90675]
[1732467763792,0.63658338,3309.0,3308.3,0.722]
[1732467764286,0.63658338,3309.0,3308.5,0.90675]
[1732467764488,3.65871338,3309.0,3308.4,0.01315565]
[1732467764702,0.63658338,3309.0,3308.3,1.62879]
[1732467764892,0.63658338,3309.0,3308.5,0.01314949]
[1732467765095,0.63658338,3309.0,3308.3,1.6288]
[1732467765299,3.02212,3309.0,3308.3,1.6288]
[1732467765590,3.02212,3309.0,3307.6,0.03022522]
[1732467765591,3.02229,3308.8,3308.0,0.722]
[1732467765798,3.324519,3308.8,3308.0,0.722]
[1732467766179,3.324519,3308.8,3308.0,0.651114]
[1732467766570,3.324519,3308.8,3308.1,0.90685]
[1732467766891,0.302229,3308.8,3308.2,0.90683]
[1732467767050,3.02209,3309.0,3308.4,0.90678]
[1732467767609,3.83959,3309.2,3308.4,0.90678]
[1732467767911,4.223549,3309.2,3308.4,0.90678]
[1732467768081,1.201659,3309.2,3308.6,0.90672]
[1732467768596,1.201659,3309.2,3308.4,0.90675]
[1732467768797,1.201659,3309.2,3308.6,0.90672]
[1732467769126,0.8177,3309.2,3308.6,0.9067]
[1732467769485,0.8177,3309.2,3308.8,0.90667]
[1732467769691,0.7883,3309.5,3308.9,0.90662]
[1732467769903,6.0438,3309.4,3308.9,0.90662]
[1732467770213,7.329162,3309.4,3308.9,0.90662]
[1732467770415,7.329162,3309.4,3309.0,0.90661]
[1732467770617,6.0438,3309.4,3308.9,0.90662]
[1732467770913,9.0655,3309.4,3308.7,0.6512]
[1732467771420,0.98538,3309.3,3308.7,0.6512]
[1732467771623,6.0438,3309.2,3308.8,0.90667]
[1732467772173,6.0438,3309.2,3308.7,0.6512]
[1732467772419,6.0438,3309.2,3308.7,1.55788]
[1732467773272,6.0438,3309.2,3308.8,0.90665]
[1732467773677,6.0438,3309.2,3309.0,0.9066]
[1732467773984,6.0438,3309.2,3308.8,0.90665]
[1732467774187,6.0438,3309.2,3309.1,0.90659]
[1732467774398,6.0438,3309.2,3308.9,0.90662]
[1732467778015,6.0438,3309.2,3309.1,0.90659]
[1732467778183,6.0438,3309.2,3309.1,1.087911]
[1732467781244,6.0438,3309.2,3309.1,4.06568347]
[1732467782121,6.0438,3309.2,3309.1,7.06568347]
[1732467783630,6.0438,3309.2,3308.9,0.90661]
[1732467784225,6.0438,3309.2,3309.0,0.90661]
[1732467784716,6.0438,3309.2,3309.1,0.90659]
[1732467787243,6.0438,3309.2,3309.1,1.178571]
[1732467788343,6.0438,3309.2,3309.1,4.15634347]
[1732467788548,6.0438,3309.2,3309.1,4.18656143]
[1732467788912,6.0438,3309.2,3309.1,4.15634347]
[1732467792550,6.0438,3309.2,3309.1,8.00774347]
[1732467795618,0.7703,3311.1,3310.6,0.90615]
[1732467796099,0.7703,3311.1,3310.2,2.97777247]
[1732467796100,0.7703,3311.1,3310.9,0.90609]
[1732467796308,3.01942,3311.9,3311.3,0.90597]
[1732467796595,0.7703,3312.2,3311.0,2.97777247]
[1732467796799,0.7703,3311.6,3311.0,0.90606]
[1732467796966,0.7703,3311.6,3310.9,0.90607]
[1732467796967,0.7703,3311.6,3310.6,3.23274247]
[1732467797168,0.378995,3311.5,3310.6,2.32657247]
[1732467797402,0.7703,3311.6,3311.1,0.90602]
[1732467797554,0.7703,3311.6,3311.2,0.90601]
[1732467797760,1.149284,3311.6,3311.2,0.90601]
[1732467798210,0.7703,3311.6,3311.1,0.0301991]
[1732467798498,3.02002,3311.3,3310.5,0.90618]
[1732467798654,3.7904,3311.2,3310.5,0.90618]
[1732467798852,3.02019,3311.1,3310.5,0.90618]
[1732467799055,3.02024,3311.0,3310.4,0.90623]
[1732467799253,0.7703,3310.6,3310.1,0.9063]
[1732467799498,0.7703,3310.6,3310.3,0.90624]
[1732467799853,3.79091,3310.6,3309.8,0.90638]
[1732467800052,0.379091,3310.5,3309.8,0.90638]
[1732467800322,0.379091,3310.5,3309.4,0.9065]
[1732467800323,3.02098,3310.2,3309.4,0.9065]
[1732467800598,3.02114,3310.0,3309.4,0.9065]
[1732467800805,0.7703,3310.1,3309.5,0.90647]
[1732467800957,0.379127,3310.0,3309.5,0.90647]
[1732467801154,0.379127,3310.0,3309.0,2.97777247]
[1732467801495,3.02121,3310.0,3309.3,0.90651]
[1732467801702,3.79143,3310.1,3309.0,2.97777247]
[1732467801703,3.0213,3309.9,3309.0,2.97777247]
[1732467801918,3.02143,3309.7,3309.0,0.90659]
[1732467802195,1.07243,3309.8,3309.1,0.90657]
[1732467802802,4.09378,3309.8,3309.2,0.90656]
[1732467803103,0.7703,3309.8,3308.8,0.0302171]
[1732467803310,0.7703,3309.8,3309.4,0.9065]
[1732467803809,0.7703,3309.8,3309.2,0.90656]
[1732467804593,0.7703,3309.8,3309.3,0.90653]
[1732467804794,0.7703,3309.8,3309.2,0.90656]
[1732467804997,3.02146,3309.7,3309.0,3.90661]
[1732467805299,3.02146,3309.7,3309.0,0.90661]
[1732467805804,0.7703,3309.8,3309.2,0.90655]
[1732467806262,0.7667,3310.2,3309.6,0.90643]
[1732467807164,3.78769,3310.2,3309.6,0.90643]
[1732467807375,0.7667,3310.2,3309.7,0.90641]
[1732467807581,0.7667,3310.2,3310.0,0.90634]
[1732467807812,0.7667,3310.2,3309.8,0.90637]
[1732467807970,0.7667,3310.2,3309.6,0.90643]
[1732467808524,3.02036,3310.9,3310.0,0.90632]
[1732467808694,0.378706,3310.8,3310.3,0.90623]
[1732467808945,3.78695,3311.0,3310.4,0.90623]
[1732467809100,3.78695,3311.0,3310.6,0.90616]
[1732467809101,0.7667,3311.0,3310.6,0.90616]
[1732467809631,0.7667,3311.0,3310.7,0.90613]
[1732467809848,0.7667,3311.0,3310.7,1.81225]
[1732467810139,0.7667,3311.4,3310.9,0.90609]
[1732467810496,0.7667,3311.4,3311.1,0.90603]
[1732467810704,0.7667,3311.4,3310.7,0.90614]
[1732467810934,0.7667,3311.4,3310.9,0.90607]
[1732467811139,4.165221,3311.4,3310.6,3.23273247]
[1732467811357,3.78658,3311.4,3310.6,3.23273247]
[1732467811721,3.78658,3311.4,3310.8,0.90612]
[1732467812527,0.7667,3311.4,3310.8,0.90612]
[1732467812842,0.7667,3311.4,3311.0,0.90606]
[1732467813047,0.7667,3311.4,3311.1,0.90603]
[1732467813202,0.7667,3311.4,3311.0,0.90606]
[1732467813404,0.7667,3311.4,3311.2,0.90601]
[1732467813840,0.7667,3311.7,3311.0,0.90606]
[1732467814140,3.78631,3311.7,3311.1,0.90602]
[1732467815050,0.7667,3311.7,3311.0,0.90606]
[1732467815231,0.7667,3311.7,3311.2,0.90599]
[1732467816151,3.78636,3311.7,3311.1,0.90604]
[1732467816313,3.78636,3311.7,3311.2,0.90601]
[1732467816730,3.78636,3311.7,3311.0,0.90607]
[1732467817260,3.78636,3311.7,3311.0,0.90606]
[1732467817559,3.02011,3311.2,3310.6,0.90617]
[1732467817863,3.02011,3311.2,3310.4,1.55742]
[1732467817864,0.7973,3311.1,3310.5,0.90619]
[1732467818062,0.7973,3311.1,3310.4,0.90622]
[1732467818063,0.7973,3311.1,3310.7,0.90615]
[1732467818374,0.7973,3311.7,3311.3,0.90598]
[1732467818654,0.7973,3311.7,3311.1,0.90604]
[1732467818655,3.81693,3311.7,3311.1,0.90604]
[1732467819014,0.7973,3311.7,3311.2,0.90601]
[1732467819211,0.7973,3311.7,3311.3,0.90597]
[1732467819945,3.81689,3311.7,3311.1,0.90604]
[1732467820461,0.7973,3311.7,3311.2,0.90601]
[1732467820656,0.7973,3311.7,3311.1,0.90604]
[1732467820957,0.7973,3312.0,3311.2,0.6512]
[1732467821254,0.7973,3312.0,3311.6,0.90589]
[1732467821459,0.7973,3312.0,3311.5,0.90591]
[1732467821620,0.7973,3312.0,3311.4,0.90593]
[1732467822029,0.7973,3312.0,3311.6,0.9059]
[1732467822232,0.7973,3312.0,3311.7,0.90585]
[1732467822625,0.7973,3312.4,3311.9,0.90581]
[1732467824158,0.7973,3312.4,3311.4,2.32657247]
[1732467824360,0.7973,3312.4,3312.0,0.90577]
[1732467824559,0.7973,3312.4,3312.1,0.90574]
[1732467824869,3.77229,3312.7,3312.1,0.90574]
[1732467825073,4.451372,3312.7,3312.1,0.90574]
[1732467825699,3.01895,3312.5,3312.0,0.03019016]
[1732467825904,3.01901,3312.4,3311.7,1.55706]
[1732467826197,3.01887,3312.5,3311.9,0.90582]
[1732467826497,3.77236,3312.7,3312.1,0.90576]
[1732467827572,3.77236,3312.7,3311.9,1.17090114]
[1732467827573,3.01894,3312.5,3311.9,1.17090114]
[1732467827778,3.01894,3312.5,3311.9,1.17091114]
[1732467828211,0.7536,3312.7,3311.5,2.13508425]
[1732467828414,3.7728,3312.2,3311.7,0.90587]
[1732467828594,0.7536,3312.2,3311.7,0.90587]
[1732467828977,0.7536,3312.2,3311.8,0.90585]
[1732467829178,0.7536,3312.2,3311.7,0.90587]
[1732467829408,3.7728,3312.2,3311.6,0.9059]
[1732467829573,3.7728,3312.2,3311.7,0.90587]
[1732467830107,3.7728,3312.2,3311.5,1.967542]
[1732467830308,3.7728,3312.2,3311.6,0.90589]
[1732467830516,0.7536,3312.2,3311.8,0.90585]
[1732467830902,0.7536,3312.2,3311.6,1.81178]
[1732467831103,0.7536,3312.2,3311.6,2.21873766]
[1732467831279,3.77279,3312.2,3311.6,1.31283766]
[1732467831802,3.7726,3312.4,3311.8,0.90584]
[1732467832013,0.7536,3312.8,3312.3,0.90569]
[1732467832189,0.7536,3312.8,3312.4,0.93584649]
[1732467832392,3.01848,3313.0,3312.4,0.90566]
[1732467832714,3.0,3313.8,3312.3,1.55689]
[1732467832715,3.0182,3313.3,3312.7,0.90558]
[1732467832915,6.03641,3313.3,3312.7,0.90558]
[1732467833072,0.603641,3313.2,3312.7,0.90558]
[1732467833472,3.621871,3313.2,3312.7,0.90558]
[1732467834018,3.7717,3313.4,3312.8,0.90555]
[1732467834221,0.7536,3313.4,3313.0,0.90551]
[1732467834675,3.0182,3313.3,3312.6,3.26236266]
[1732467834879,3.0182,3313.3,3312.7,0.9056]
[1732467835115,1.130756,3313.4,3312.9,0.90553]
[1732467835337,3.77171,3313.4,3312.8,0.90555]
[1732467835830,3.77171,3313.4,3312.9,0.90555]
[1732467836125,3.01815,3313.3,3312.7,0.9056]
[1732467836347,3.58522765,3313.3,3312.7,0.9056]
[1732467836790,3.01824,3313.2,3312.7,0.9056]
[1732467836991,3.58521765,3313.3,3312.7,0.90558]
[1732467837217,0.56707765,3313.3,3312.7,0.90558]
[1732467837436,0.56707765,3313.3,3312.8,0.90556]
[1732467837588,3.58522765,3313.3,3312.8,0.90556]
[1732467837928,3.01837,3313.1,3312.3,4.58708253]
[1732467838144,3.01837,3313.1,3312.5,0.90564]
[1732467838286,0.43388277,3313.2,3312.6,0.90561]
[1732467838485,3.01817,3313.3,3312.7,0.90559]
[1732467840187,3.01846,3313.0,3312.4,0.90567]
[1732467840387,0.301846,3313.0,3312.6,0.90561]
[1732467840628,3.01855,3312.9,3312.3,3.9057]
[1732467840831,0.7536,3312.8,3312.3,3.0]
[1732467841041,0.7536,3312.8,3312.5,0.90565]
[1732467841224,0.7536,3312.8,3312.4,0.90567]
[1732467841388,3.01836,3313.1,3312.4,0.90567]
[1732467841389,3.77196,3313.1,3312.4,0.90567]
[1732467841583,3.77193,3313.1,3312.5,0.90565]
[1732467842013,3.01872,3312.7,3312.1,0.90576]
[1732467842213,3.01872,3312.7,3312.2,0.90574]
[1732467842387,3.0186,3312.8,3312.2,0.90574]
[1732467842593,3.01847,3313.0,3312.4,0.90568]
[1732467842797,0.7536,3313.3,3312.3,0.03018767]
[1732467843000,3.01858,3312.9,3312.0,1.58715681]
[1732467843187,3.01871,3312.7,3312.0,2.24533025]
[1732467843385,3.01878,3312.6,3312.0,0.6512]
[1732467843588,3.01891,3312.5,3311.9,3.9058]
[1732467843827,3.01904,3312.4,3311.7,1.55706]
[1732467844032,3.01916,3312.2,3311.7,1.55706]
[1732467844251,3.01936,3312.0,3311.4,0.6512]
[1732467844387,3.01936,3312.0,3311.4,1.55713]
[1732467844595,3.01943,3311.9,3311.4,1.55715]
[1732467844792,0.7551,3312.1,3311.5,0.90591]
[1732467845237,3.01938,3312.0,3311.4,0.897513]
[1732467845442,3.01938,3312.0,3311.4,0.6512]
[1732467845644,3.01954,3311.8,3311.4,0.6512]
[1732467845942,3.0197,3311.6,3311.1,0.6512]
[1732467846240,3.0197,3311.6,3311.1,0.94897725]
[1732467846850,3.0197,3311.6,3311.1,1.85501725]
[1732467847081,0.7551,3312.1,3310.6,0.03019613]
[1732467847082,0.7551,3312.1,3310.8,1.55731]
[1732467847245,3.77491,3311.5,3310.9,0.93628868]
[1732467847753,3.01987,3311.4,3310.8,0.68139959]
[1732467847964,3.01987,3311.4,3310.8,1.9789098]
[1732467848171,3.601891,3312.4,3310.9,0.90609]
[1732467848172,3.01956,3311.8,3310.9,0.90609]
[1732467848354,3.01963,3311.7,3310.8,1.04261021]
[1732467848686,6.03984,3311.4,3310.8,0.6512]
[1732467848882,3.01988,3311.4,3310.8,0.6512]
[1732467849174,3.02007,3311.2,3310.8,0.6512]
[1732467849377,3.01987,3311.4,3310.8,0.6512]
[1732467849991,3.02008,3311.2,3310.8,0.6512]
[1732467850543,3.02014,3311.1,3310.6,5.32657247]
[1732467850743,3.02014,3311.1,3310.6,6.07623957]
[1732467851243,3.01994,3311.4,3310.7,0.03020098]
[1732467851780,3.01996,3311.3,3310.7,0.93633047]
[1732467851948,3.02022,3311.1,3310.6,6.07623957]
[1732467852147,3.02022,3311.1,3310.6,6.98240957]
[1732467852570,3.01999,3311.3,3310.7,0.85398096]
[1732467853240,0.7551,3311.6,3311.0,0.90604]
[1732467853459,3.01959,3311.7,3311.1,0.93621803]
[1732467853783,3.01989,3311.4,3311.0,0.6512]
[1732467854431,3.0196,3311.7,3311.1,0.90602]
[1732467854715,3.0196,3311.7,3311.0,0.6512]
[1732467854716,3.0197,3311.6,3311.0,0.6512]
[1732467854915,3.0197,3311.6,3311.0,0.80994884]
[1732467855292,3.01979,3311.5,3311.0,1.71600884]
[1732467855474,3.01979,3311.5,3311.0,1.55726]
[1732467856299,3.01998,3311.3,3311.0,0.6512]
[1732467856496,3.01998,3311.3,3310.7,0.6512]
[1732467856826,3.01998,3311.3,3310.8,1.50389725]
[1732467857375,3.0198,3311.5,3310.8,1.50389725]
[1732467857594,3.01987,3311.4,3310.8,1.50389725]
[1732467857840,3.01987,3311.4,3310.8,1.53409642]
[1732467858882,6.03982,3311.4,3310.8,1.53409642]
[1732467859100,3.0199,3311.4,3310.9,0.21852964]
[1732467859791,0.7551,3311.9,3311.0,0.90604]
[1732467859792,3.01961,3311.7,3311.0,0.90604]
[1732467859992,3.01961,3311.7,3311.3,0.6512]
[1732467862854,3.77454,3311.9,3311.3,0.68139661]
[1732467863177,3.01951,3311.8,3311.3,0.68139661]
[1732467863326,3.0196,3311.7,3311.3,0.6512]
[1732467864072,2.7234677,3311.7,3311.3,0.6512]
[1732467864574,2.7234677,3311.7,3310.7,3.6512]
[1732467864575,3.01978,3311.5,3310.7,3.6512]
[1732467864774,3.01997,3311.3,3310.8,0.9061]
[1732467864986,6.03964,3311.5,3310.9,0.90609]
[1732467865334,3.01988,3311.4,3310.8,0.155735]
[1732467865632,3.01997,3311.3,3310.8,0.9061]
[1732467866233,3.0201,3311.2,3310.7,0.6512]
[1732467866435,6.04001,3311.3,3310.7,1.55734]
[1732467866786,3.01954,3311.8,3310.7,1.55734]
[1732467866787,0.8009,3311.4,3310.7,0.6512]
[1732467867066,0.8009,3311.4,3310.3,3.0]
[1732467867067,3.0204,3310.9,3310.4,1.55742]
[1732467867267,3.0204,3310.9,3310.4,0.6512]
[1732467867474,3.02042,3310.8,3310.4,1.43022925]
[1732467867974,0.8009,3311.2,3310.1,0.6512]
[1732467868165,3.02076,3310.5,3310.1,0.6512]
[1732467868334,3.02052,3310.7,3310.1,0.6512]
[1732467868536,0.8009,3311.2,3310.1,0.6512]
[1732467868737,3.0205,3310.8,3310.2,0.90628]
[1732467868962,3.02058,3310.7,3310.1,0.6512]
[1732467869388,3.02058,3310.7,3310.1,1.55751]
[1732467869555,3.02062,3310.6,3310.1,1.55751]
[1732467870496,3.02062,3310.6,3310.1,2.103897]
[1732467871000,3.0205,3310.8,3310.1,2.103897]
[1732467871204,0.8009,3311.2,3310.3,0.90623]
[1732467871356,3.0203,3311.0,3310.4,0.93641411]
[1732467871698,6.04061,3311.0,3310.4,0.93641411]
[1732467871902,3.02042,3310.8,3310.2,0.90627]
[1732467872055,3.02071,3310.5,3310.1,1.01632]
[1732467872487,3.02051,3310.7,3310.1,1.92263]
[1732467872958,3.02051,3310.7,3310.2,0.90627]
[1732467873198,3.02043,3310.8,3310.2,0.90627]
[1732467873397,3.02052,3310.7,3310.2,1.18916]
[1732467873557,3.02043,3310.8,3310.2,1.18916]
[1732467873758,3.02043,3310.8,3310.3,0.220548]
[1732467873956,3.02043,3310.8,3310.3,1.126798]
[1732467875116,3.02018,3311.1,3310.3,0.220548]
[1732467875417,3.02043,3310.8,3310.3,0.220548]
[1732467875575,3.02043,3310.8,3310.3,0.93645439]
[1732467875781,3.12747247,3311.1,3309.4,0.6512]
[1732467876090,3.0213,3309.9,3309.4,0.6512]
[1732467876290,3.02144,3309.7,3309.4,0.6512]
[1732467876532,3.02157,3309.6,3309.1,0.6512]
[1732467876778,3.02171,3309.4,3309.1,0.6512]
[1732467876976,0.8009,3309.8,3309.1,0.6512]
[1732467876977,3.02154,3309.6,3309.1,0.6512]
[1732467877669,3.02143,3309.7,3309.1,1.55778]
[1732467877829,3.02152,3309.6,3309.1,0.6512]
[1732467878025,3.02143,3309.7,3309.1,0.6512]
[1732467878269,3.02165,3309.5,3308.9,1.55784]
[1732467878487,3.02165,3309.5,3309.0,0.155784]
[1732467878832,3.02169,3309.4,3308.9,0.6512]
[1732467879352,3.02198,3309.1,3308.5,0.6512]
[1732467879554,3.02194,3309.2,3308.5,0.6512]
[1732467879751,3.02217,3308.9,3308.5,0.6512]
[1732467879951,3.02239,3308.7,3308.2,0.6512]
[1732467880280,3.02224,3308.8,3308.2,1.55803]
[1732467880513,3.02232,3308.8,3308.3,0.155803]
[1732467880672,0.8009,3309.5,3308.3,0.155803]
[1732467880861,0.8009,3309.5,3308.2,0.6512]
[1732467880862,3.02224,3308.8,3308.2,1.55802]
[1732467881205,3.02197,3309.1,3308.5,0.90673]
[1732467881498,3.02188,3309.2,3308.6,0.90671]
[1732467881660,3.02188,3309.2,3308.7,0.03022011]
[1732467881861,3.02188,3309.2,3308.6,0.90671]
[1732467882877,3.02169,3309.4,3308.8,0.90664]
[1732467883205,3.02169,3309.4,3308.9,0.90664]
[1732467883563,3.02153,3309.6,3308.9,0.90664]
[1732467883892,3.0216,3309.5,3308.9,0.90664]
[1732467884499,3.02147,3309.7,3309.1,0.90658]
[1732467884712,3.02144,3309.7,3309.1,0.90658]
[1732467884995,3.82226,3309.8,3309.1,0.90658]
[1732467884996,3.02152,3309.6,3309.1,0.90658]
[1732467885202,3.02152,3309.6,3308.9,1.153091]
[1732467885385,3.0216,3309.5,3308.9,1.153091]
[1732467885586,3.82227,3309.8,3308.9,0.246451]
[1732467885806,3.0,3310.3,3309.1,0.90657]
[1732467885964,3.02138,3309.8,3309.2,0.90655]
[1732467886708,0.8211,3310.1,3309.4,0.6512]
[1732467886864,3.02113,3310.1,3309.5,0.90647]
[1732467887059,3.02113,3310.1,3309.6,0.90645]
[1732467887498,3.02087,3310.3,3309.7,0.90642]
[1732467887800,0.8211,3310.4,3309.7,0.90642]
[1732467887801,3.02073,3310.5,3309.7,1.087707]
[1732467888110,3.02086,3310.4,3309.5,0.90647]
[1732467888262,3.02095,3310.3,3309.7,0.90642]
[1732467888465,3.02079,3310.4,3309.8,0.90637]
[1732467889503,3.02079,3310.4,3309.6,1.06521792]
[1732467889663,3.02079,3310.4,3309.8,0.90639]
[1732467890090,3.02088,3310.3,3309.8,0.90639]
[1732467890287,3.02079,3310.4,3309.6,1.06521792]
[1732467890511,0.8211,3310.2,3309.6,0.90643]
[1732467890816,3.84212,3310.2,3309.6,0.90643]
[1732467890968,3.02115,3310.0,3309.4,1.55769]
[1732467891169,3.02115,3310.0,3309.4,2.01647992]
[1732467891672,3.02106,3310.1,3309.5,0.90646]
[1732467892501,5.32657247,3311.1,3309.4,1.14020185]
[1732467892502,6.04164,3310.4,3309.4,1.14020185]
[1732467892801,3.02079,3310.4,3309.9,0.90637]
[1732467893106,3.0207,3310.5,3310.0,0.6512]
[1732467893611,3.0207,3310.5,3310.0,1.55754]
[1732467893778,0.8211,3310.6,3310.0,1.55754]
[1732467893959,3.0204,3310.9,3310.0,1.55754]
[1732467893960,3.8415,3310.9,3310.2,0.90626]
[1732467894164,0.30204,3310.8,3310.2,0.90626]
[1732467894700,3.02051,3310.7,3310.2,0.90626]
[1732467894914,3.0206,3310.6,3310.0,1.55752]
[1732467895465,3.02076,3310.5,3310.0,0.6512]
[1732467895806,0.30204,3310.8,3310.0,1.55753]
[1732467895807,3.0205,3310.7,3310.0,1.55753]
[1732467895983,3.0207,3310.5,3310.0,1.55753]
[1732467896616,3.0207,3310.5,3310.0,0.6512]
[1732467897066,3.02079,3310.4,3310.0,0.6512]
[1732467897269,3.02057,3310.7,3310.0,1.55752]
[1732467897467,0.302057,3310.6,3310.0,0.6814099]
[1732467897703,3.0205,3310.7,3310.2,0.90628]
[1732467898305,3.0205,3310.7,3310.1,0.90631]
[1732467898810,6.86185,3310.9,3310.2,0.90628]
[1732467898985,3.84146,3310.9,3310.2,0.90628]
[1732467899182,3.02042,3310.8,3310.2,0.90628]
[1732467899376,6.04091,3310.8,3310.2,0.90627]
[1732467899575,3.02042,3310.8,3310.2,0.90627]
[1732467899895,3.02051,3310.7,3310.2,0.90627]
[1732467900097,3.02051,3310.7,3310.0,1.55754]
[1732467900300,3.02051,3310.7,3310.1,0.90631]
[1732467900506,3.02061,3310.6,3310.1,0.90631]
[1732467900674,3.02051,3310.7,3310.1,1.81261]
[1732467900871,0.8211,3310.9,3310.4,0.90621]
[1732467901109,3.84149,3310.9,3310.3,0.90624]
[1732467901311,3.02039,3310.9,3310.4,0.90622]
[1732467901477,6.0404,3311.1,3310.4,0.90622]
[1732467901677,6.0404,3311.1,3310.1,0.246381]
[1732467901678,0.8181,3311.2,3310.6,0.90616]
[1732467901905,0.8181,3311.5,3310.5,0.6512]
[1732467902213,3.0202,3311.1,3310.5,1.5574]
[1732467902509,3.01996,3311.3,3310.6,0.90615]
[1732467902695,3.02017,3311.1,3310.5,0.6512]
[1732467903609,3.02018,3311.1,3310.5,0.6512]
[1732467903821,3.0203,3311.0,3310.5,0.6512]
[1732467903976,3.02038,3310.9,3310.5,0.6512]
[1732467904177,3.02021,3311.1,3310.5,0.6512]
[1732467904178,3.02026,3311.0,3310.5,0.6512]
[1732467904877,3.02048,3310.8,3310.5,0.6512]
[1732467905488,3.02048,3310.8,3309.8,0.03020371]
[1732467905489,4.393954,3310.8,3309.9,0.6512]
[1732467905704,3.02061,3310.6,3309.9,1.55756]
[1732467905905,3.78986,3310.8,3310.1,0.90629]
[1732467906412,3.02086,3310.4,3309.9,0.6512]
[1732467906616,3.02088,3310.3,3309.9,0.6512]
[1732467906844,3.02103,3310.2,3309.6,1.55763]
[1732467907020,3.02103,3310.2,3309.6,1.713393]
[1732467907177,3.02123,3310.0,3309.6,0.806963]
[1732467907574,3.021,3310.2,3309.6,0.806963]
[1732467907805,3.021,3310.2,3309.6,1.713413]
[1732467908021,3.02107,3310.1,3309.6,1.713413]
[1732467908522,3.02113,3310.1,3309.6,0.806963]
[1732467908679,3.02117,3310.0,3309.6,0.806963]
[1732467908877,3.02117,3310.0,3309.6,0.6512]
[1732467909282,3.02125,3309.9,3309.6,0.6512]
[1732467909525,3.02106,3310.1,3309.6,0.6512]
[1732467910327,0.7694,3310.8,3309.6,0.6512]
[1732467910328,3.02082,3310.4,3309.6,0.6512]
[1732467910523,3.02082,3310.4,3309.7,0.03021126]
[1732467910727,0.7694,3310.8,3309.6,0.6512]
[1732467910728,3.02101,3310.2,3309.6,1.55765]
[1732467911340,3.02101,3310.2,3309.7,0.90642]
[1732467911629,3.02087,3310.3,3309.8,0.90639]
[1732467911787,3.02097,3310.2,3309.7,0.155767]
[1732467911990,3.02078,3310.4,3309.7,1.062187]
[1732467912233,3.02078,3310.4,3309.8,0.90638]
[1732467912525,3.0206,3310.6,3309.8,0.90638]
[1732467912700,3.02078,3310.4,3309.8,0.90638]
[1732467913102,3.0206,3310.6,3310.1,0.6512]
[1732467913307,3.0206,3310.6,3310.1,1.55751]
[1732467914114,3.0206,3310.6,3310.1,0.6512]
[1732467914115,3.02079,3310.4,3310.1,0.6512]
[1732467914373,3.0206,3310.6,3310.1,0.6512]
[1732467914634,3.02044,3310.8,3310.1,1.55751]
[1732467914841,3.02023,3311.0,3310.3,0.90625]
[1732467915044,3.02023,3311.0,3310.1,1.803888]
[1732467915045,3.02022,3311.1,3310.7,0.6512]
[1732467915224,3.02026,3311.0,3310.7,0.6512]
[1732467915390,3.02026,3311.0,3310.4,0.90622]
[1732467915591,6.04017,3311.2,3310.5,0.90619]
[1732467915795,3.02017,3311.1,3310.4,0.93640329]
[1732467916034,3.624067,3311.2,3310.5,0.90618]
[1732467916189,3.02019,3311.1,3310.5,0.90618]
[1732467916393,3.02005,3311.2,3310.5,0.90618]
[1732467916624,3.02034,3310.9,3310.3,1.55745]
[1732467916840,3.02026,3311.0,3310.4,0.90623]
[1732467917212,3.02044,3310.8,3310.3,1.55745]
[1732467917397,3.02042,3310.8,3310.3,0.6512]
[1732467917592,3.02042,3310.8,3310.0,0.6512]
[1732467917593,0.302042,3310.8,3310.0,0.6512]
[1732467917896,3.7556,3310.9,3309.7,0.6512]
[1732467918122,3.02092,3310.3,3309.7,1.5576]
[1732467918968,3.02092,3310.3,3309.8,0.90639]
[1732467919170,3.02102,3310.2,3309.7,0.6512]
[1732467919928,3.02094,3310.3,3309.7,1.5576]
[1732467920161,3.02094,3310.3,3309.7,1.55761]
[1732467920550,3.02094,3310.3,3309.7,0.6512]
[1732467920754,3.02067,3310.6,3310.0,0.90634]
[1732467920977,3.02067,3310.6,3309.7,0.6814117]
[1732467921264,3.02082,3310.4,3309.9,0.90637]
[1732467921473,3.02067,3310.6,3309.9,0.90637]
[1732467921639,3.02047,3310.8,3310.3,0.6512]
[1732467921972,0.7556,3310.9,3310.3,1.55746]
[1732467921973,3.02033,3310.9,3310.3,1.55746]
[1732467922142,3.02028,3311.0,3310.4,0.90622]
[1732467922471,2.32657247,3312.0,3310.6,0.90617]
[1732467922472,3.02018,3311.1,3310.6,0.90617]
[1732467922828,3.02018,3311.1,3310.5,0.03020688]
[1732467923126,0.7556,3311.5,3310.5,0.03020688]
[1732467923127,3.01987,3311.4,3310.8,0.9061]
[1732467923765,3.01997,3311.3,3310.7,0.6512]
[1732467923962,3.02024,3311.0,3310.7,0.6512]
[1732467924335,0.7556,3311.5,3310.4,0.6512]
[1732467924543,0.7556,3311.5,3311.1,0.90604]
[1732467924743,3.01979,3311.5,3311.0,0.6512]
[1732467925060,3.01978,3311.5,3311.0,0.6512]
[1732467925264,3.0197,3311.6,3311.0,1.55726]
[1732467925442,3.01953,3311.8,3311.1,0.90604]
[1732467925846,0.8187,3312.1,3311.1,0.90604]
[1732467926153,0.55,3312.0,3311.0,1.55724]
[1732467926342,2.87657247,3312.0,3310.5,0.03019921]
[1732467926682,3.02051,3310.7,3310.4,0.6512]
[1732467926860,0.8187,3311.2,3310.4,0.6512]
[1732467927058,3.02069,3310.5,3309.9,0.6512]
[1732467927260,3.02069,3310.5,3309.9,4.95121792]